Workbook

Sheet INSTRUCTIONS
A1: INSTRUCTIONS (Also see the "Closing price" tab)
A3: This tool is designed to keep track of the annualized gain/loss for each stock entered. It will also determine the annualized gain for the entire portfolio. Determining how well your portfolio is doing compared to the S&P500 and Total Stock Market on a continuing basis is shown as well. A few sample stocks are shown for illustration. All data are taken from the Broker's statement except the current index values. The blue and yellow columns and cells require data to be entered manually.
A4: NOTE: There are pop-up instructions in many cells. Hover the cursor over any cell with a red corner to see them.
A5: (Rename the portfolio to identify it.)
A6: Enter the date of the analysis here -- (Use the date on the broker's statement.) Then click the "Update Index Data" icon.
A7: Enter the starting value of the portfolio and the date it was started.
A8: 1. Sort by company name, ticker, purchase date, etc. by clicking the box. Sort using the sorting method on the broker statement. (Makes it easier to enter prices.)
A9: 2. Click on each index to get the latest data--year ago end of year and most recent month value. Type those values in the cells to the right. (See the "Closing Price Instructions" tab.
A10: 3. Enter each stock owned on a separate line. -- Enter the NAME, TICKER SYMBOL, DATE OF PURCHASE, NUMBER OF SHARES, and TOTAL COST/VALUE
A12: 4. Enter the CURRENT PRICE for each stock on a monthly basis (yellow column) from your broker statement.
A13: 5. A broker statement may indicate Dividends as a % or dollar value. Select the method with the radio button, then enter the Dividend.
A14: 6. Click "Annualized S&P500 Growth" to determine the % growth/loss of the index during the time your portfolio has been in existance. Enter the result in the yellow cell. Compare the result with your "Portfolio Annualized return:" The result is an approximation of the comparison. See the "PLEASE READ" note at the bottom right.
A15: 7. Enter any deposits or withdrawals during current year. Delete the values at the beginning of each succeeding year.
A16: 8. Enter the CASH VALUE THIS MONTH --taken from broker statement
A17: 9. The Toal Annualized Return will include previous years gains and losses if entered in the yellow cells. Enter the year the portfolio was started in the first cell (yellow color) and the gain or loss for each year. (The other dates will be written in the gray cells automatically.) Use the 1099 tax form received from the broker and total of Interest, Dividends, and gains and losses, then enter the number in the cell for each year. OR, use the sum of lines 8a, 9a, and line 13 of the IRS Form 1040. This will provide the annualized return from all previously owned companies rather than being limited to current holdings. | D17: PLEASE READ: If you have maintained a portfolio over a number of years it takes some digging to find the data needed to determine the portfolio growth since the beginning, but isn't it worth it? If you saved your IRS Form 1040, look on the first page of the 1040 and look for the Capital Gains/Loss figure. Curently it's line 13.
A18: Each column can be sorted by clicking on the arrow at the head of each column. Each time a company is bought enter the information the the next unused line and sort by name or ticker symbol. When a company is sold, delete the data on that line, then sort by company name or ticker symbol. | C18: Once companies held in your portfolio are entered, each month (1) change the date on this form to the date on the broker statement, (2) enter the current price for each company, and (3) the cash value that month. That's it--three steps each month. You may sort the companies by using the Down Arrow at the top of each column.
A19: To delete old data -- select each cell or group of cells and press the Delete key. If you are asked for a password you are attempting to delete data in a cell containing a formula and therefore should not be deleted. No password is required for the use of this spreadsheet.
A20: DO NOT DELETE ANYTHING IN A WHITE CELL. THEY CONTAIN FORMULAS. DOWNLOAD A NEW COPY IF FORMULAS ARE ACCIDENTLY DELETED.
A23: RETURN TO PORTFOLIO ANALYSIS PAGE

Sheet Closing price Instructions
B1: When on the StockCharts.com site, follow the two steps below. The example shown is the closing price of 290.31 for August 31 2018. (Notice where the two gray lines cross. That's where the cursor is located.)

Sheet ANALYSIS
A1: Enter "E" if eqity - "B" if bond type of investment | B1: I. Gotbucks | E1: CURRENT PORTFOLIO REPORT -- ANNUALIZED | Q1: version 6.16
B2: =V13 -> 2017-12-31 | C2: =IF(V10=TRUE,"Calculate return on YTD basis", "Calculate return on 12 month basis") -> Calculate return on YTD basis | G2: =V17 -> Enter Portfolio Value at end of prior year | L2: Select Dividend | R2: Instructions
B3: 2018-08-31 | C3: <<< Month end date from recent Broker Statement | H3: Current | L3: Payout Method | Q3: =IF('Historic Data'!E1>0,"Click the Icon to update Historic sheet","") -> 
B4: To protect the spreadsheet, all cells containing | H4: Value/Price | I4: Percent Change | O4: Percent | P4: Annualized | Q4: =IF('Historic Data'!D1>0,"THERE IS AN ERROR IN THE HISTORIC DATA SHEET. Open the sheet and delete the data indicated","") -> 
B5: formulas cannot be selected . Cells requiring | D5: DJI | F5: DOW JONES ETF >>> | G5: 24824 | H5: 25920 | I5: =H5/G5-1 -> 0.04415082179 | K5: =IF(V$10=TRUE,"YTD","12 Mo. Anual") -> YTD | O5: of total | P5: Value
B6: data are colored yellow & blue for company data. | D6: SPY | E6: S&P 500 ETF >>> | G6: 264 | H6: 290 | I6: =H6/G6-1 -> 0.09848484848 | K6: =IF(V$10=TRUE,"YTD","12 Mo. Anual") -> YTD | O6: Port- | P6: for each | Q6: Cash
B7: Value of portfolio when started: | C7: 2000 | D7: BND | E7: Total Bond ETF (BND) >>> | G7: 80 | H7: 79 | I7: =H7/G7-1 -> -0.0125 | K7: =IF(V$10=TRUE,"YTD","12 Mo. Anual") -> YTD | M7: Annualized | N7: Percent | Q7: Paid In
B8: Date this portfolio was started: | C8: 2016-06-30 | F8: =V18 -> VALUE AT END OF PRIOR YEAR >>> | G8: 121000 | H8: =I34 -> 135354.666 | I8: =IF(ISBLANK(G8),"",(H8/G8)-1) -> 0.1186336033 | K8: =IF(V$10=TRUE,"YTD","12 Mo. Anual") -> YTD | M8: Growth | N8: of Total | O8: folio | P8: Stock | Q8: YTD | R8: Date | T8: Avg>> | U8: =AVERAGE(I5:I6) -> 0.07131783514
B9: Company | C9: Stk Symbol | D9: Purch Date | E9: Shrs Owned | F9: Shr Cost | G9: Total Cost | H9: Current Price | I9: Dividend | J9: Column1 | K9: Curr. Value | L9: Gain (Loss) | M9: Rate | N9: Portfolio
A10: E | B10: COGNIZANT | C10: CTSH | D10: 2011-07-15 | E10: 500 | F10: 40.28 | G10: =E10*F10 -> 20140 | H10: 61.61 | J10: =IF(I10=0,"",IF(T$10=1,"%","$")) ->  | K10: =IF(ISBLANK(H10),"",H10*(1+U10)*E10) -> 30805 | L10: =IF(ISBLANK(H10),"",K10-G10) -> 10665 | M10: =IF(ISBLANK(H10),"",IF($B$3-D10<180,"Owned <180 days",((K10/G10)^((1/(($B$3-D10)/365)))-1))) -> 0.06137738581 | N10: =IF(ISBLANK(H10),"",K10/H$8) -> 0.227587278 | P10: =IF(K10>1,(G10*((1+(N$43/1200))^((B$3-D10)/30.4))),"") -> 20140 | T10: 1 | U10: =IF(T$10=1,I10/100,I10/H10) -> 0 | V10: TRUE
A11: E | B11: DOW CHEMICAL | C11: DOW | D11: 2013-07-12 | E11: 200 | F11: 35.65 | G11: =E11*F11 -> 7130 | H11: 57.94 | I11: 0.2 | J11: =IF(I11=0,"",IF(T$10=1,"%","$")) -> % | K11: 11611.176 | L11: 4481.176 | M11: 0.09952682754 | N11: 0.08578334492 | P11: =IF(I11>1,(G11*((1+(N$43/1200))^((B$3-D11)/30.4))),"") ->  | U11: 0.002 | V11: =IF(V10=FALSE,B3-366,"bad date") -> bad date | W11: Error check
A12: E | B12: GILEAD SCIENCE | C12: GILD | D12: 2014-08-15 | E12: 400 | F12: 98.41 | G12: =E12*F12 -> 39364 | H12: 120 | I12: 1 | J12: =IF(I12=0,"",IF(T$10=1,"%","$")) -> % | K12: 48480 | L12: 9116 | M12: 0.05282343335 | N12: 0.3581701424 | P12: =IF(I12>1,(G12*((1+(N$43/1200))^((B$3-D12)/30.4))),"") ->  | U12: 0.01 | V12: =IF(ISERROR(V11),"Enter a correct date",V11) -> bad date | W12: 12 month analysis
A13: E | B13: QUALCOM | C13: QCOM | D13: 2016-03-15 | E13: 300 | F13: 74.46 | G13: =E13*F13 -> 22338 | H13: 78 | J13: =IF(I13=0,"",IF(T$10=1,"%","$")) ->  | K13: 23400 | L13: 1062 | M13: 0.01903662311 | N13: 0.1728791529 | P13: =IF(I13>1,(G13*((1+(N$43/1200))^((B$3-D13)/30.4))),"") ->  | U13: 0 | V13: =IF(ISERROR(V14),"Enter a correct date below",IF(V10=FALSE,V12,V14)) -> 2017-12-31 | W13: Value for cell B2
A14: B | B14: Vanguard Short Term Index | C14: VBIRX | D14: 2015-10-04 | E14: 999 | F14: 10.34 | G14: 10034 | H14: 10.51 | J14: =IF(I14=0,"",IF(T$10=1,"%","$")) ->  | K14: 10499.49 | L14: 465.49 | M14: 0.01570757286 | N14: 0.07757021099 | P14: =IF(I19>1,(G19*((1+(N$43/1200))^((B$3-D19)/30.4))),"") ->  | U14: 0 | V14: =DATE(YEAR(B3)-1,12,31) -> 2017-12-31 | W14: YTD date
J15: =IF(I15=0,"",IF(T$10=1,"%","$")) ->  | K15: =IF(ISBLANK(H15),"",H15*(1+U15)*E15) ->  | L15: =IF(ISBLANK(H15),"",K15-G15) ->  | M15: =IF(ISBLANK(H15),"",IF($B$3-D15<180,"Owned <180 days",((K15/G15)^((1/(($B$3-D15)/365)))-1))) ->  | N15: =IF(ISBLANK(H15),"",K15/H$8) -> 
P17: =IF(H14>1,(F14*((1+(N$43/1200))^((B$3-C14)/30.4))),"") ->  | U17: 0 | V17: =IF(V10=TRUE,"Enter Portfolio Value at end of prior year","Enter Portfolio Value 12 months ago") -> Enter Portfolio Value at end of prior year
P18: =IF(I18>1,(G18*((1+(N$43/1200))^((B$3-D18)/30.4))),"") ->  | U18: 0 | V18: =IF(V10= TRUE,"VALUE AT END OF PRIOR YEAR >>>","PORTFOLIO VALUE 12 MONTHS AGO >>>") -> VALUE AT END OF PRIOR YEAR >>>
P19: =IF(#REF!>1,(#REF!*((1+(N$43/1200))^((B$3-#REF!)/30.4))),"") ->  | U19: 0
U20: 0
P21: =IF(I21>1,(G21*((1+(N$43/1200))^((B$3-D21)/30.4))),"") ->  | U21: 0
U22: 0
Q23: =SUM(Q9:Q22) -> 0 | R23: Total Paid In | U23: 0
U24: 0
Q25: Cash Paid Out YTD | U25: 0
R26: Date | U26: 0
U27: 0
U28: 0
U29: 0
U30: 0
U31: 0
Q32: =SUM(Q26:Q31) -> 0 | R32: Total Paid Out | U32: 0
U33: 0
G34: =SUM(G10:G33) -> 99006 | I34: =SUM(K10:K33)+H35 -> 135354.666 | K34: Portfolio Anualized return: | M34: ='Annual Iteration'!C4 -> 0.1513878189 | N34: =IF(SUM(L42:L52)>0,"<<< Annualized return since portfolio inception","") -> <<< Annualized return since portfolio inception
G35: Cash value this Month: | H35: 10559 | I35: =I34+H35+H36-H37+H38 -> 148413.666 | K35: Portfolio Value including Historical Capital gains/losses
G36: Cash paid in YTD: | H36: =Q23 -> 0 | I36: =IF(I8>AVERAGE(I5:I6),"Great--your portfolio is beating the average of the DOW and S&P 500 YTD","Oops, your pofolio is underperforming the average of the DOW and S&P 500 YTD") -> Great--your portfolio is beating the average of the DOW and S&P 500 YTD
C37: Start Year | D37: Most Recent data | E37: S&P 500 Growth | G37: Cash paid out YTD: | H37: =Q32 -> 0 | I37: =IF(ISBLANK(E38),"",IF(M34>E38,"Your portfolio average gain is better than S&P 500--long term","Oops the S&P 500 has done better than your portfolio--long term")) -> Your portfolio average gain is better than S&P 500--long term
C38: =K42 -> 1905-07-08 | D38: =B2 -> 2017-12-31 | E38: 0.084 | F38: Total Prior year capital returns: | H38: =SUM(L42:L52)+SUM(N42:N52) -> 2500 | I38: =IF(B78>1,B79,"") -> 0.2846308502 | J38: =IF($B78>1,IF($B79>AVERAGE($I5:$I6),"Your Equity portion of the portfolio is beating the average of the DOW & S&P 500 YTD","Your Equity portion of the portfolio is NOT beating the average of the DOW and S&P 500 YTD"),"") -> Your Equity portion of the portfolio is beating the average of the DOW & S&P 500 YTD
I39: =IF(C78>0.01,B80,"") -> 0.04639126968 | J39: =IF(I39>I7,"Your Bond portion of the portfolio is beating the Total Bond index YTD","Oops, your bond portforlio is under performing the Total Bond index YTD") -> Your Bond portion of the portfolio is beating the Total Bond index YTD
B40: This form may be used for any type of investment--mutual funds, portfolio of stocks, etc. | K40: Portfolio | L40: Capital Gains | M40: Portfolio | N40: Capital Gains
B41: A comment on the accuracy of the results: | K41: Earliest YR | L41: + Int. + Div. | M41: Year | N41: '+ Int. + Div. | Q41: NOTE: From your IRS form 1040 enter the sum of lines 8a, 9a, and 13. (Sum of Interest + Dividends + Capital Gain/Loss) Enter the sum in the yellow cell next to the appropriate year, beginning with the first year the portfolio was established.
B42: The attempt here is to provide guideline figures, not absolute results, when comparing portfolio to | K42: 2016 | L42: 1000 | M42: =K52+1 -> 2027
B43: market averages. Absolute results require simultaneous "buying" and "selling" of the market | K43: =K42+1 -> 2017 | L43: 1500 | M43: =M42+1 -> 2028
B44: indexes. As guidelines however, the comparison results are sufficiently accurate. | K44: =K43+1 -> 2018 | M44: =M43+1 -> 2029
B45: For absolute gain/loss results I suggest the purchase of Investment Account Manager from www.quantixsoftware.com. | K45: 2019 | M45: 2030
K46: 2020 | M46: 2031
B47: Updates for this tool are available at: www.bob-adams.net | K47: 2021 | M47: 2032
K48: 2022 | M48: 2033
K49: 2023 | M49: 2034 | U49: paid in
K50: 2024 | M50: 2035
K51: 2025 | M51: 2036
K52: 2026 | M52: 2037
B54: DO NOT ENTER DATA IN THE BOX BELOW
B55: % Equities | C55: % Bonds | D55: Equities | E55: Bonds
B56: =IF(ISBLANK(A10),K10,IF($A10="e",$K10,"")) -> 30805 | C56: =IF($A10="b",$K10,"") ->  | D56: =IF(ISBLANK(A10),G10,IF($A10="e",$G10,"")) -> 20140 | E56: =IF($A10="b",$G10,"") -> 
B57: =IF(ISBLANK(A11),K11,IF($A11="e",$K11,"")) -> 11611.176 | C57: =IF($A11="b",$K11,"") ->  | D57: =IF(ISBLANK(A11),G11,IF($A11="e",$G11,"")) -> 7130 | E57: =IF($A11="b",$G11,"") -> 
B58: =IF(ISBLANK(A12),K12,IF($A12="e",$K12,"")) -> 48480 | C58: =IF($A12="b",$K12,"") ->  | D58: =IF(ISBLANK(A12),G12,IF($A12="e",$G12,"")) -> 39364 | E58: =IF($A12="b",$G12,"") -> 
B59: =IF(ISBLANK(A13),K13,IF($A13="e",$K13,"")) -> 23400 | C59: =IF($A13="b",$K13,"") ->  | D59: =IF(ISBLANK(A13),G13,IF($A13="e",$G13,"")) -> 22338 | E59: =IF($A13="b",$G13,"") -> 
B60: =IF(ISBLANK(A14),K14,IF($A14="e",$K14,"")) ->  | C60: =IF($A14="b",$K14,"") -> 10499.49 | D60: =IF(ISBLANK(A14),G14,IF($A14="e",$G14,"")) ->  | E60: =IF($A14="b",$G14,"") -> 10034
B61: =IF(ISBLANK(A17),K17,IF($A17="e",$K17,"")) ->  | C61: =IF($A18="b",$K17,"") ->  | D61: =IF(ISBLANK(A17),G17,IF($A17="e",$G17,"")) -> 0 | E61: =IF($A17="b",$G17,"") -> 
C62: =IF(A14="b",$K18,"") ->  | D62: 0
C63: =IF($A19="b",$K19,"") ->  | D63: 0
D64: 0
D65: 0
D66: 0
D67: 0
D68: 0
D69: 0
D70: 0
D71: 0
D72: 0
D73: 0
D74: 0
D75: 0
D76: 0
D77: 0
B78: =SUM(B56:B77) -> 114296.176 | C78: =SUM(C56:C77) -> 10499.49 | D78: =SUM(D56:D77) -> 88972 | E78: =SUM(E56:E77) -> 10034
B79: =B78/D78-1 -> 0.2846308502 | C79: Gain on Equities owned
B80: =C78/E78-1 -> 0.04639126968 | C80: Gain on Bonds owned

Sheet Historic Data
D1: =SUM(D2:D79) -> 0 | E1: =SUM(E2:E79) -> 0 | F1: =SUM(F2:F79) -> 0
A2: =ANALYSIS!C8 -> 2016-06-30 | B2: 0 | C2: =IF(ISBLANK(B2),"",IF(A2>ANALYSIS!B$3,"<<Remove this data","")) ->  | E2: =IF(AND(ISBLANK(B2),G$2>A2),1,"") ->  | G2: =ANALYSIS!B3 -> 2018-08-31
A3: =A2+30 -> 2016-07-30 | B3: 0 | C3: =IF(ISBLANK(B3),"",IF(A3>ANALYSIS!B$3,"<<Remove this data","")) ->  | D3: =IF(C3="<<remove this data",1,"") ->  | E3: =IF(AND(ISBLANK(B3),G$2>A3),1,"") ->  | F3: =IF(OR(A3=ANALYSIS!B$3),ISBLANK(B3)*1,0) -> 0
A4: =A3+30 -> 2016-08-29 | B4: 0 | C4: =IF(ISBLANK(B4),"",IF(A4>ANALYSIS!B$3,"<<Remove this data","")) ->  | E4: =IF(AND(ISBLANK(B4),G$2>A4),1,"") ->  | F4: =IF(OR(A4=ANALYSIS!B$3),ISBLANK(B4)*1,0) -> 0
A5: 2016-09-28 | B5: 0 | C5: =IF(ISBLANK(B5),"",IF(A5>ANALYSIS!B$3,"<<Remove this data","")) ->  | E5: =IF(AND(ISBLANK(B5),G$2>A5),1,"") ->  | F5: =IF(OR(A5=ANALYSIS!B$3),ISBLANK(B5)*1,0) -> 0
A6: 2016-10-28 | B6: 0 | C6: =IF(ISBLANK(B6),"",IF(A6>ANALYSIS!B$3,"<<Remove this data","")) ->  | E6: =IF(AND(ISBLANK(B6),G$2>A6),1,"") ->  | F6: =IF(OR(A6=ANALYSIS!B$3),ISBLANK(B6)*1,0) -> 0 | G6: MAKE NO CHANGES ON THIS SHEET
A7: 2016-11-27 | B7: 0 | C7: =IF(ISBLANK(B7),"",IF(A7>ANALYSIS!B$3,"<<Remove this data","")) ->  | E7: =IF(AND(ISBLANK(B7),G$2>A7),1,"") ->  | F7: =IF(OR(A7=ANALYSIS!B$3),ISBLANK(B7)*1,0) -> 0 | G7: (An exception: If data is in a future date cell, delete the NUMBER.)
A8: 2016-12-27 | B8: 0 | C8: =IF(ISBLANK(B8),"",IF(A8>ANALYSIS!B$3,"<<Remove this data","")) ->  | E8: =IF(AND(ISBLANK(B8),G$2>A8),1,"") ->  | F8: =IF(OR(A8=ANALYSIS!B$3),ISBLANK(B8)*1,0) -> 0
A9: 2017-01-26 | B9: 0 | C9: =IF(ISBLANK(B9),"",IF(A9>ANALYSIS!B$3,"<<Remove this data","")) ->  | E9: =IF(AND(ISBLANK(B9),G$2>A9),1,"") ->  | F9: =IF(OR(A9=ANALYSIS!B$3),ISBLANK(B9)*1,0) -> 0 | G9: CHECK THAT THE LATEST NUMBER IS ASSOCIATED WITH THE LATEST DATE INDICATED
A10: 2017-02-25 | B10: 0 | C10: =IF(ISBLANK(B10),"",IF(A10>ANALYSIS!B$3,"<<Remove this data","")) ->  | E10: =IF(AND(ISBLANK(B10),G$2>A10),1,"") ->  | F10: =IF(OR(A10=ANALYSIS!B$3),ISBLANK(B10)*1,0) -> 0
A11: 2017-03-27 | B11: 0 | C11: =IF(ISBLANK(B11),"",IF(A11>ANALYSIS!B$3,"<<Remove this data","")) ->  | E11: =IF(AND(ISBLANK(B11),G$2>A11),1,"") ->  | F11: =IF(OR(A11=ANALYSIS!B$3),ISBLANK(B11)*1,0) -> 0
A12: 2017-04-26 | B12: 0 | C12: =IF(ISBLANK(B12),"",IF(A12>ANALYSIS!B$3,"<<Remove this data","")) ->  | E12: =IF(AND(ISBLANK(B12),G$2>A12),1,"") ->  | F12: =IF(OR(A12=ANALYSIS!B$3),ISBLANK(B12)*1,0) -> 0
A13: 2017-05-26 | B13: 0 | C13: =IF(ISBLANK(B13),"",IF(A13>ANALYSIS!B$3,"<<Remove this data","")) ->  | E13: =IF(AND(ISBLANK(B13),G$2>A13),1,"") ->  | F13: =IF(OR(A13=ANALYSIS!B$3),ISBLANK(B13)*1,0) -> 0
A14: 2017-06-25 | B14: 0 | C14: =IF(ISBLANK(B14),"",IF(A14>ANALYSIS!B$3,"<<Remove this data","")) ->  | E14: =IF(AND(ISBLANK(B14),G$2>A14),1,"") ->  | F14: =IF(OR(A14=ANALYSIS!B$3),ISBLANK(B14)*1,0) -> 0
A15: 2017-07-25 | B15: 0 | C15: =IF(ISBLANK(B15),"",IF(A15>ANALYSIS!B$3,"<<Remove this data","")) ->  | D15: =IF(C15="<<remove this data",1,"") ->  | E15: =IF(AND(ISBLANK(B15),G$2>A15),1,"") ->  | F15: =IF(OR(A15=ANALYSIS!B$3),ISBLANK(B15)*1,0) -> 0
A16: 2017-08-24 | B16: 0 | C16: =IF(ISBLANK(B16),"",IF(A16>ANALYSIS!B$3,"<<Remove this data","")) ->  | D16: =IF(C16="<<remove this data",1,"") ->  | E16: =IF(AND(ISBLANK(B16),G$2>A16),1,"") ->  | F16: =IF(OR(A16=ANALYSIS!B$3),ISBLANK(B16)*1,0) -> 0 | G16: MACRO TO INSERT NEW DATA ON THE NEXT BLANK LINE
A17: 2017-09-23 | B17: 0 | C17: =IF(ISBLANK(B17),"",IF(A17>ANALYSIS!B$3,"<<Remove this data","")) ->  | E17: =IF(AND(ISBLANK(B17),G$2>A17),1,"") ->  | F17: =IF(OR(A17=ANALYSIS!B$3),ISBLANK(B17)*1,0) -> 0 | G17: Range("A1:J1").Copy
A18: 2017-10-23 | B18: 0 | C18: =IF(ISBLANK(B18),"",IF(A18>ANALYSIS!B$3,"<<Remove this data","")) ->  | E18: =IF(AND(ISBLANK(B18),G$2>A18),1,"") ->  | F18: =IF(OR(A18=ANALYSIS!B$3),ISBLANK(B18)*1,0) -> 0 | G18: Sheets("Sheet2").Range("A" & Rows.Count).End(xlUp).Offset(1, 0).PasteSpecial xlPasteValues
A19: 2017-11-22 | B19: 0 | C19: =IF(ISBLANK(B19),"",IF(A19>ANALYSIS!B$3,"<<Remove this data","")) ->  | E19: =IF(AND(ISBLANK(B19),G$2>A19),1,"") ->  | F19: =IF(OR(A19=ANALYSIS!B$3),ISBLANK(B19)*1,0) -> 0 | G19: End Sub
A20: 2017-12-22 | B20: 0 | C20: =IF(ISBLANK(B20),"",IF(A20>ANALYSIS!B$3,"<<Remove this data","")) ->  | E20: =IF(AND(ISBLANK(B20),G$2>A20),1,"") ->  | F20: =IF(OR(A20=ANALYSIS!B$3),ISBLANK(B20)*1,0) -> 0
A21: 2018-01-21 | B21: 0 | C21: =IF(ISBLANK(B21),"",IF(A21>ANALYSIS!B$3,"<<Remove this data","")) ->  | E21: =IF(AND(ISBLANK(B21),G$2>A21),1,"") ->  | F21: =IF(OR(A21=ANALYSIS!B$3),ISBLANK(B21)*1,0) -> 0
A22: 2018-02-20 | B22: 0 | C22: =IF(ISBLANK(B22),"",IF(A22>ANALYSIS!B$3,"<<Remove this data","")) ->  | E22: =IF(AND(ISBLANK(B22),G$2>A22),1,"") ->  | F22: =IF(OR(A22=ANALYSIS!B$3),ISBLANK(B22)*1,0) -> 0
A23: 2018-03-22 | B23: 0 | C23: =IF(ISBLANK(B23),"",IF(A23>ANALYSIS!B$3,"<<Remove this data","")) ->  | E23: =IF(AND(ISBLANK(B23),G$2>A23),1,"") ->  | F23: =IF(OR(A23=ANALYSIS!B$3),ISBLANK(B23)*1,0) -> 0
A24: 2018-04-21 | B24: 0 | C24: =IF(ISBLANK(B24),"",IF(A24>ANALYSIS!B$3,"<<Remove this data","")) ->  | E24: =IF(AND(ISBLANK(B24),G$2>A24),1,"") ->  | F24: =IF(OR(A24=ANALYSIS!B$3),ISBLANK(B24)*1,0) -> 0
A25: 2018-05-21 | B25: 0 | C25: =IF(ISBLANK(B25),"",IF(A25>ANALYSIS!B$3,"<<Remove this data","")) ->  | E25: =IF(AND(ISBLANK(B25),G$2>A25),1,"") ->  | F25: =IF(OR(A25=ANALYSIS!B$3),ISBLANK(B25)*1,0) -> 0
A26: 2018-06-20 | B26: 0 | C26: =IF(ISBLANK(B26),"",IF(A26>ANALYSIS!B$3,"<<Remove this data","")) ->  | E26: =IF(AND(ISBLANK($B26),$G$2>$A26),1,"") ->  | F26: =IF(OR(A26=ANALYSIS!B$3),ISBLANK(B26)*1,0) -> 0
A27: 2018-07-20 | B27: 0 | C27: =IF(ISBLANK(B27),"",IF(A27>ANALYSIS!B$3,"<<Remove this data","")) ->  | E27: =IF(AND(ISBLANK(B27),G$2>A27),1,"") ->  | F27: =IF(OR(A27=ANALYSIS!B$3),ISBLANK(B27)*1,0) -> 0
A28: 2018-08-19 | B28: 135354.666 | C28: =IF(ISBLANK(B28),"",IF(A28>ANALYSIS!B$3,"<<Remove this data","")) ->  | E28: =IF(AND(ISBLANK(B28),G$2>A28),1,"") ->  | F28: =IF(OR(A28=ANALYSIS!B$3),ISBLANK(B28)*1,0) -> 0
A29: 2018-09-18 | C29: =IF(ISBLANK(B29),"",IF(A29>ANALYSIS!B$3,"<<Remove this data","")) ->  | E29: =IF(AND(ISBLANK(B29),G$2>A29),1,"") ->  | F29: =IF(OR(A29=ANALYSIS!B$3),ISBLANK(B29)*1,0) -> 0
A30: 2018-10-18 | C30: =IF(ISBLANK(B30),"",IF(A30>ANALYSIS!B$3,"<<Remove this data","")) ->  | E30: =IF(AND(ISBLANK(B30),G$2>A30),1,"") ->  | F30: =IF(OR(A30=ANALYSIS!B$3),ISBLANK(B30)*1,0) -> 0
A31: 2018-11-17 | C31: =IF(ISBLANK(B31),"",IF(A31>ANALYSIS!B$3,"<<Remove this data","")) ->  | E31: =IF(AND(ISBLANK(B31),G$2>A31),1,"") ->  | F31: =IF(OR(A31=ANALYSIS!B$3),ISBLANK(B31)*1,0) -> 0
A32: 2018-12-17 | C32: =IF(ISBLANK(B32),"",IF(A32>ANALYSIS!B$3,"<<Remove this data","")) ->  | E32: =IF(AND(ISBLANK(B32),G$2>A32),1,"") ->  | F32: =IF(OR(A32=ANALYSIS!B$3),ISBLANK(B32)*1,0) -> 0
A33: 2019-01-16 | C33: =IF(ISBLANK(B33),"",IF(A33>ANALYSIS!B$3,"<<Remove this data","")) ->  | E33: =IF(AND(ISBLANK(B33),G$2>A33),1,"") ->  | F33: =IF(OR(A33=ANALYSIS!B$3),ISBLANK(B33)*1,0) -> 0
A34: 2019-02-15 | C34: =IF(ISBLANK(B34),"",IF(A34>ANALYSIS!B$3,"<<Remove this data","")) ->  | E34: =IF(AND(ISBLANK(B34),G$2>A34),1,"") ->  | F34: =IF(OR(A34=ANALYSIS!B$3),ISBLANK(B34)*1,0) -> 0
A35: 2019-03-17 | C35: =IF(ISBLANK(B35),"",IF(A35>ANALYSIS!B$3,"<<Remove this data","")) ->  | E35: =IF(AND(ISBLANK(B35),G$2>A35),1,"") ->  | F35: =IF(OR(A35=ANALYSIS!B$3),ISBLANK(B35)*1,0) -> 0
A36: 2019-04-16 | C36: =IF(ISBLANK(B36),"",IF(A36>ANALYSIS!B$3,"<<Remove this data","")) ->  | E36: =IF(AND(ISBLANK(B36),G$2>A36),1,"") ->  | F36: =IF(OR(A36=ANALYSIS!B$3),ISBLANK(B36)*1,0) -> 0
A37: 2019-05-16 | C37: =IF(ISBLANK(B37),"",IF(A37>ANALYSIS!B$3,"<<Remove this data","")) ->  | E37: =IF(AND(ISBLANK(B37),G$2>A37),1,"") ->  | F37: =IF(OR(A37=ANALYSIS!B$3),ISBLANK(B37)*1,0) -> 0
A38: 2019-06-15 | C38: =IF(ISBLANK(B38),"",IF(A38>ANALYSIS!B$3,"<<Remove this data","")) ->  | E38: =IF(AND(ISBLANK(B38),G$2>A38),1,"") ->  | F38: =IF(OR(A38=ANALYSIS!B$3),ISBLANK(B38)*1,0) -> 0
A39: 2019-07-15 | C39: =IF(ISBLANK(B39),"",IF(A39>ANALYSIS!B$3,"<<Remove this data","")) ->  | E39: =IF(AND(ISBLANK(B39),G$2>A39),1,"") ->  | F39: =IF(OR(A39=ANALYSIS!B$3),ISBLANK(B39)*1,0) -> 0
A40: 2019-08-14 | C40: =IF(ISBLANK(B40),"",IF(A40>ANALYSIS!B$3,"<<Remove this data","")) ->  | E40: =IF(AND(ISBLANK(B40),G$2>A40),1,"") ->  | F40: =IF(OR(A40=ANALYSIS!B$3),ISBLANK(B40)*1,0) -> 0
A41: 2019-09-13 | C41: =IF(ISBLANK(B41),"",IF(A41>ANALYSIS!B$3,"<<Remove this data","")) ->  | E41: =IF(AND(ISBLANK(B41),G$2>A41),1,"") ->  | F41: =IF(OR(A41=ANALYSIS!B$3),ISBLANK(B41)*1,0) -> 0
A42: 2019-10-13 | C42: =IF(ISBLANK(B42),"",IF(A42>ANALYSIS!B$3,"<<Remove this data","")) ->  | E42: =IF(AND(ISBLANK(B42),G$2>A42),1,"") ->  | F42: =IF(OR(A42=ANALYSIS!B$3),ISBLANK(B42)*1,0) -> 0
A43: 2019-11-12 | C43: =IF(ISBLANK(B43),"",IF(A43>ANALYSIS!B$3,"<<Remove this data","")) ->  | E43: =IF(AND(ISBLANK(B43),G$2>A43),1,"") ->  | F43: =IF(OR(A43=ANALYSIS!B$3),ISBLANK(B43)*1,0) -> 0
A44: 2019-12-12 | C44: =IF(ISBLANK(B44),"",IF(A44>ANALYSIS!B$3,"<<Remove this data","")) ->  | E44: =IF(AND(ISBLANK(B44),G$2>A44),1,"") ->  | F44: =IF(OR(A44=ANALYSIS!B$3),ISBLANK(B44)*1,0) -> 0
A45: 2020-01-11 | C45: =IF(ISBLANK(B45),"",IF(A45>ANALYSIS!B$3,"<<Remove this data","")) ->  | E45: =IF(AND(ISBLANK(B45),G$2>A45),1,"") ->  | F45: =IF(OR(A45=ANALYSIS!B$3),ISBLANK(B45)*1,0) -> 0
A46: 2020-02-10 | C46: =IF(ISBLANK(B46),"",IF(A46>ANALYSIS!B$3,"<<Remove this data","")) ->  | E46: =IF(AND(ISBLANK(B46),G$2>A46),1,"") ->  | F46: =IF(OR(A46=ANALYSIS!B$3),ISBLANK(B46)*1,0) -> 0
A47: 2020-03-11 | C47: =IF(ISBLANK(B47),"",IF(A47>ANALYSIS!B$3,"<<Remove this data","")) ->  | E47: =IF(AND(ISBLANK(B47),G$2>A47),1,"") ->  | F47: =IF(OR(A47=ANALYSIS!B$3),ISBLANK(B47)*1,0) -> 0
A48: 2020-04-10 | C48: =IF(ISBLANK(B48),"",IF(A48>ANALYSIS!B$3,"<<Remove this data","")) ->  | E48: =IF(AND(ISBLANK(B48),G$2>A48),1,"") ->  | F48: =IF(OR(A48=ANALYSIS!B$3),ISBLANK(B48)*1,0) -> 0
A49: 2020-05-10 | C49: =IF(ISBLANK(B49),"",IF(A49>ANALYSIS!B$3,"<<Remove this data","")) ->  | E49: =IF(AND(ISBLANK(B49),G$2>A49),1,"") ->  | F49: =IF(OR(A49=ANALYSIS!B$3),ISBLANK(B49)*1,0) -> 0
A50: 2020-06-09 | C50: =IF(ISBLANK(B50),"",IF(A50>ANALYSIS!B$3,"<<Remove this data","")) ->  | E50: =IF(AND(ISBLANK(B50),G$2>A50),1,"") ->  | F50: =IF(OR(A50=ANALYSIS!B$3),ISBLANK(B50)*1,0) -> 0
A51: 2020-07-09 | C51: =IF(ISBLANK(B51),"",IF(A51>ANALYSIS!B$3,"<<Remove this data","")) ->  | E51: =IF(AND(ISBLANK(B51),G$2>A51),1,"") ->  | F51: =IF(OR(A51=ANALYSIS!B$3),ISBLANK(B51)*1,0) -> 0
A52: 2020-08-08 | C52: =IF(ISBLANK(B52),"",IF(A52>ANALYSIS!B$3,"<<Remove this data","")) ->  | E52: =IF(AND(ISBLANK(B52),G$2>A52),1,"") ->  | F52: =IF(OR(A52=ANALYSIS!B$3),ISBLANK(B52)*1,0) -> 0
A53: 2020-09-07 | C53: =IF(ISBLANK(B53),"",IF(A53>ANALYSIS!B$3,"<<Remove this data","")) ->  | E53: =IF(AND(ISBLANK(B53),G$2>A53),1,"") ->  | F53: =IF(OR(A53=ANALYSIS!B$3),ISBLANK(B53)*1,0) -> 0
A54: 2020-10-07 | C54: =IF(ISBLANK(B54),"",IF(A54>ANALYSIS!B$3,"<<Remove this data","")) ->  | E54: =IF(AND(ISBLANK(B54),G$2>A54),1,"") ->  | F54: =IF(OR(A54=ANALYSIS!B$3),ISBLANK(B54)*1,0) -> 0
A55: 2020-11-06 | C55: =IF(ISBLANK(B55),"",IF(A55>ANALYSIS!B$3,"<<Remove this data","")) ->  | E55: =IF(AND(ISBLANK(B55),G$2>A55),1,"") ->  | F55: =IF(OR(A55=ANALYSIS!B$3),ISBLANK(B55)*1,0) -> 0
A56: 2020-12-06 | C56: =IF(ISBLANK(B56),"",IF(A56>ANALYSIS!B$3,"<<Remove this data","")) ->  | E56: =IF(AND(ISBLANK(B56),G$2>A56),1,"") ->  | F56: =IF(OR(A56=ANALYSIS!B$3),ISBLANK(B56)*1,0) -> 0
A57: 2021-01-05 | C57: =IF(ISBLANK(B57),"",IF(A57>ANALYSIS!B$3,"<<Remove this data","")) ->  | E57: =IF(AND(ISBLANK(B57),G$2>A57),1,"") ->  | F57: =IF(OR(A57=ANALYSIS!B$3),ISBLANK(B57)*1,0) -> 0
A58: 2021-02-04 | C58: =IF(ISBLANK(B58),"",IF(A58>ANALYSIS!B$3,"<<Remove this data","")) ->  | E58: =IF(AND(ISBLANK(B58),G$2>A58),1,"") ->  | F58: =IF(OR(A58=ANALYSIS!B$3),ISBLANK(B58)*1,0) -> 0
A59: 2021-03-06 | C59: =IF(ISBLANK(B59),"",IF(A59>ANALYSIS!B$3,"<<Remove this data","")) ->  | E59: =IF(AND(ISBLANK(B59),G$2>A59),1,"") ->  | F59: =IF(OR(A59=ANALYSIS!B$3),ISBLANK(B59)*1,0) -> 0
A60: 2021-04-05 | C60: =IF(ISBLANK(B60),"",IF(A60>ANALYSIS!B$3,"<<Remove this data","")) ->  | E60: =IF(AND(ISBLANK(B60),G$2>A60),1,"") ->  | F60: =IF(OR(A60=ANALYSIS!B$3),ISBLANK(B60)*1,0) -> 0
A61: 2021-05-05 | C61: =IF(ISBLANK(B61),"",IF(A61>ANALYSIS!B$3,"<<Remove this data","")) ->  | E61: =IF(AND(ISBLANK(B61),G$2>A61),1,"") ->  | F61: =IF(OR(A61=ANALYSIS!B$3),ISBLANK(B61)*1,0) -> 0
A62: 2021-06-04 | C62: =IF(ISBLANK(B62),"",IF(A62>ANALYSIS!B$3,"<<Remove this data","")) ->  | E62: =IF(AND(ISBLANK(B62),G$2>A62),1,"") ->  | F62: =IF(OR(A62=ANALYSIS!B$3),ISBLANK(B62)*1,0) -> 0
A63: 2021-07-04 | C63: =IF(ISBLANK(B63),"",IF(A63>ANALYSIS!B$3,"<<Remove this data","")) ->  | E63: =IF(AND(ISBLANK(B63),G$2>A63),1,"") ->  | F63: =IF(OR(A63=ANALYSIS!B$3),ISBLANK(B63)*1,0) -> 0
A64: 2021-08-03 | C64: =IF(ISBLANK(B64),"",IF(A64>ANALYSIS!B$3,"<<Remove this data","")) ->  | E64: =IF(AND(ISBLANK(B64),G$2>A64),1,"") ->  | F64: =IF(OR(A64=ANALYSIS!B$3),ISBLANK(B64)*1,0) -> 0
A65: 2021-09-02 | C65: =IF(ISBLANK(B65),"",IF(A65>ANALYSIS!B$3,"<<Remove this data","")) ->  | E65: =IF(AND(ISBLANK(B65),G$2>A65),1,"") ->  | F65: =IF(OR(A65=ANALYSIS!B$3),ISBLANK(B65)*1,0) -> 0
A66: 2021-10-02 | C66: =IF(ISBLANK(B66),"",IF(A66>ANALYSIS!B$3,"<<Remove this data","")) ->  | E66: =IF(AND(ISBLANK(B66),G$2>A66),1,"") ->  | F66: =IF(OR(A66=ANALYSIS!B$3),ISBLANK(B66)*1,0) -> 0
A67: 2021-11-01 | C67: =IF(ISBLANK(B67),"",IF(A67>ANALYSIS!B$3,"<<Remove this data","")) ->  | E67: =IF(AND(ISBLANK(B67),G$2>A67),1,"") ->  | F67: =IF(OR(A67=ANALYSIS!B$3),ISBLANK(B67)*1,0) -> 0
A68: =A67+30 -> 2021-12-01 | C68: =IF(ISBLANK(B68),"",IF(A68>ANALYSIS!B$3,"<<Remove this data","")) ->  | E68: =IF(AND(ISBLANK(B68),G$2>A68),1,"") ->  | F68: =IF(OR(A68=ANALYSIS!B$3),ISBLANK(B68)*1,0) -> 0
A69: 2021-12-31 | C69: =IF(ISBLANK(B69),"",IF(A69>ANALYSIS!B$3,"<<Remove this data","")) ->  | E69: =IF(AND(ISBLANK(B69),G$2>A69),1,"") ->  | F69: =IF(OR(A69=ANALYSIS!B$3),ISBLANK(B69)*1,0) -> 0
A70: 2022-01-30 | C70: =IF(ISBLANK(B70),"",IF(A70>ANALYSIS!B$3,"<<Remove this data","")) ->  | E70: =IF(AND(ISBLANK(B70),G$2>A70),1,"") ->  | F70: =IF(OR(A70=ANALYSIS!B$3),ISBLANK(B70)*1,0) -> 0
A71: 2022-03-01 | C71: =IF(ISBLANK(B71),"",IF(A71>ANALYSIS!B$3,"<<Remove this data","")) ->  | E71: =IF(AND(ISBLANK(B71),G$2>A71),1,"") ->  | F71: =IF(OR(A71=ANALYSIS!B$3),ISBLANK(B71)*1,0) -> 0
A72: 2022-03-31 | C72: =IF(ISBLANK(B72),"",IF(A72>ANALYSIS!B$3,"<<Remove this data","")) ->  | E72: =IF(AND(ISBLANK(B72),G$2>A72),1,"") ->  | F72: =IF(OR(A72=ANALYSIS!B$3),ISBLANK(B72)*1,0) -> 0
A73: 2022-04-30 | C73: =IF(ISBLANK(B73),"",IF(A73>ANALYSIS!B$3,"<<Remove this data","")) ->  | E73: =IF(AND(ISBLANK(B73),G$2>A73),1,"") ->  | F73: =IF(OR(A73=ANALYSIS!B$3),ISBLANK(B73)*1,0) -> 0
A74: 2022-05-30 | C74: =IF(ISBLANK(B74),"",IF(A74>ANALYSIS!B$3,"<<Remove this data","")) ->  | E74: =IF(AND(ISBLANK(B74),G$2>A74),1,"") ->  | F74: =IF(OR(A74=ANALYSIS!B$3),ISBLANK(B74)*1,0) -> 0
A75: 2022-06-29 | C75: =IF(ISBLANK(B75),"",IF(A75>ANALYSIS!B$3,"<<Remove this data","")) ->  | E75: =IF(AND(ISBLANK(B75),G$2>A75),1,"") ->  | F75: =IF(OR(A75=ANALYSIS!B$3),ISBLANK(B75)*1,0) -> 0
A76: 2022-07-29 | C76: =IF(ISBLANK(B76),"",IF(A76>ANALYSIS!B$3,"<<Remove this data","")) ->  | E76: =IF(AND(ISBLANK(B76),G$2>A76),1,"") ->  | F76: =IF(OR(A76=ANALYSIS!B$3),ISBLANK(B76)*1,0) -> 0
A77: 2022-08-28 | C77: =IF(ISBLANK(B77),"",IF(A77>ANALYSIS!B$3,"<<Remove this data","")) ->  | E77: =IF(AND(ISBLANK(B77),G$2>A77),1,"") ->  | F77: =IF(OR(A77=ANALYSIS!B$3),ISBLANK(B77)*1,0) -> 0
A78: 2022-09-27 | C78: =IF(ISBLANK(B78),"",IF(A78>ANALYSIS!B$3,"<<Remove this data","")) ->  | E78: =IF(AND(ISBLANK(B78),G$2>A78),1,"") ->  | F78: =IF(OR(A78=ANALYSIS!B$3),ISBLANK(B78)*1,0) -> 0
A79: 2022-10-27 | C79: =IF(ISBLANK(B79),"",IF(A79>ANALYSIS!B$3,"<<Remove this data","")) ->  | E79: =IF(AND(ISBLANK(B79),G$2>A79),1,"") ->  | F79: =IF(OR(A79=ANALYSIS!B$3),ISBLANK(B79)*1,0) -> 0
A80: 2022-11-26 | C80: =IF(ISBLANK(B80),"",IF(A80>ANALYSIS!B$3,"<<Remove this data","")) ->  | D80: =IF(C80="<<remove this data",1,"") ->  | E80: =IF(AND(ISBLANK(B80),G$2>A80),1,"") ->  | F80: =IF(OR(A80=ANALYSIS!B$3),ISBLANK(B80)*1,0) -> 0
A81: =A80+30 -> 2022-12-26 | C81: =IF(ISBLANK(B81),"",IF(A81>ANALYSIS!B$3,"<<Remove this data","")) ->  | E81: =IF(AND(ISBLANK(B81),G$2>A81),1,"") ->  | F81: =IF(OR(A81=ANALYSIS!B$3),ISBLANK(B81)*1,0) -> 0

Sheet Annual Iteration
C1: Portfolio
B2: Cost Basis | C2: Return
A3: Start Value | B3: =ANALYSIS!C7 -> 2000 | C3: IRR | E3: XIRR
A4: =ANALYSIS!C8 -> 2016-06-30 | B4: =-B3 -> -2000 | C4: =IRR(B4:B39) -> 0.1513878189 | E4: =XIRR(B4:B39,A4:A39) -> 0.1513878167
A5: =A4+365.25 -> 2017-06-30T06:00:00 | B5: =ANALYSIS!L42 -> 1000
A6: =A5+365.25 -> 2018-06-30T12:00:00 | B6: =ANALYSIS!L43 -> 1500
A7: 2019-06-30T18:00:00 | B7: =ANALYSIS!L44 -> 0 | F7: MAKE NO CHANGES ON THIS SHEET
A8: 2020-06-30 | B8: =ANALYSIS!L45 -> 0
A9: 2021-06-30T06:00:00 | B9: =ANALYSIS!L46 -> 0
A10: 2022-06-30T12:00:00 | B10: =ANALYSIS!L47 -> 0
A11: 2023-06-30T18:00:00 | B11: =ANALYSIS!L48 -> 0
A12: 2024-06-30 | B12: =ANALYSIS!L49 -> 0
A13: 2025-06-30T06:00:00 | B13: =ANALYSIS!L50 -> 0
A14: 2026-06-30T12:00:00 | B14: =ANALYSIS!L51 -> 0
A15: 2027-06-30T18:00:00 | B15: =ANALYSIS!L52 -> 0
A16: 2028-06-30 | B16: =ANALYSIS!N42 -> 0
A17: 2029-06-30T06:00:00 | B17: =ANALYSIS!N43 -> 0
A18: 2030-06-30T12:00:00 | B18: =ANALYSIS!N44 -> 0
A19: 2031-06-30T18:00:00 | B19: =ANALYSIS!N45 -> 0
A20: 2032-06-30 | B20: =ANALYSIS!N46 -> 0
A21: 2033-06-30T06:00:00 | B21: =ANALYSIS!N47 -> 0
A22: 2034-06-30T12:00:00 | B22: =ANALYSIS!N48 -> 0
A23: 2035-06-30T18:00:00 | B23: =ANALYSIS!N49 -> 0
A24: 2036-06-30 | B24: =ANALYSIS!N50 -> 0
A25: 2037-06-30T06:00:00 | B25: =ANALYSIS!N51 -> 0
A26: 2038-06-30T12:00:00 | B26: =ANALYSIS!N52 -> 0
A27: 2039-06-30T18:00:00 | B27: =ANALYSIS!N53 -> 0
A28: 2040-06-30 | B28: =ANALYSIS!N54 -> 0
A29: 2041-06-30T06:00:00 | B29: =ANALYSIS!N55 -> 0
A30: 2042-06-30T12:00:00 | B30: =ANALYSIS!N56 -> 0
A31: 2043-06-30T18:00:00 | B31: =ANALYSIS!N57 -> 0
A32: 2044-06-30 | B32: =ANALYSIS!N58 -> 0
A33: 2045-06-30T06:00:00 | B33: =ANALYSIS!N59 -> 0
A34: 2046-06-30T12:00:00 | B34: =ANALYSIS!N60 -> 0
A35: 2047-06-30T18:00:00 | B35: =ANALYSIS!N61 -> 0
A36: 2048-06-30 | B36: =ANALYSIS!N62 -> 0
A37: 2049-06-30T06:00:00 | B37: =ANALYSIS!N63 -> 0
A38: 2050-06-30T12:00:00 | B38: =ANALYSIS!N64 -> 0
A39: 2051-06-30T18:00:00 | B39: =ANALYSIS!N65 -> 0
